[Event "Hector S Nazzari Memorial 2019"]
[Site "Montevideo"]
[Date "2019.10.18"]
[Round "5.9"]
[White "Tregarthen, Emiliano"]
[Black "Genta, Alejandro"]
[Result "1-0"]
[ECO "B42"]
[WhiteElo "2039"]
[BlackElo "2036"]
[Annotator "NA RC"]
[PlyCount "63"]
[EventDate "2019.10.14"]
[EventType "swiss"]
[EventCountry "URU"]
[SourceTitle "playchess.com"]
[Source "ChessBase"]
[SourceQuality "1"]
[TimeControl "5400+30"]

{[%evp 8,48,48,33,40,31,68,52,62,51,59,65,72,67,73,28,36,12,0,0,-6,-41,-29,-54,32767,-86,-69,-112,-40,-52,32767,32767,0,-97,0,0,60,73,76,32767,32767,22,144]} 1. e4 {[%emt 0:00:11]} c5 {[%emt 0:17:01]} 2. Nf3 {[%emt 0:00:17]} e6 {[%emt 0:00:08]} 3. d4 {[%emt 0:00:37]} cxd4 {[%emt 0:00:18]} 4. Nxd4 {[%emt 0:00:04]} a6 {[%emt 0:00:04]} 5. Bd3 {[%emt 0:01:05]} Qc7 {[%emt 0:00:36]} 6. O-O {[%emt 0:00:46]} Bc5 {[%emt 0:00:08]} 7. Nb3 {[%emt 0:00:45] B42: Sicilian: Kan Variation: 5 Bd3} Be7 {[%emt 0:00:09]} 8. Qg4 {[%emt 0:01:02]} g6 {[%emt 0:03:19]} 9. Nc3 {[%emt 0:01:01]} (9. a4 d6 10. a5 Nf6 11. Qe2 Nc6 12. Bh6 Bf8 13. Be3 Bg7 14. Nc3 O-O {1-0 (53) Robson,R (2675)-Ramirez Alvarez,A (2555) chess.com INT 2017}) 9... Nf6 {[%emt 0:01:37]} 10. Qe2 {[%emt 0:00:23]} Nc6 $146 {[%emt 0:07:35]} ({Predecessor:} 10... d6 11. f4 Nbd7 12. Bd2 b5 13. Rae1 Bb7 14. e5 Nh5 15. Be4 d5 {0-1 (33) Travkina,A (2221)-Sukhareva,E (2207) Sochi 2017}) 11. a4 {[%emt 0:03:50]} O-O {[%emt 0:01:51]} 12. Bh6 {[%emt 0:02:11]} Re8 {[%emt 0:00:31]} 13. f4 {[%emt 0:01:03]} d5 {[%emt 0:05:30]} 14. Rae1 {[%emt 0:11:01]} (14. e5 $11 Nd7 15. Kh1) 14... dxe4 {[%emt 0:13:57]} 15. Nxe4 {[%emt 0:05:21]} Bd7 {[%emt 0:05:14]} 16. Kh1 {[%emt 0:11:56]} Nb4 {[%emt 0:01:24]} 17. Nbc5 {[%emt 0:07:38]} Bc6 {[%emt 0:10:23]} (17... Nxe4 $17 18. Nxd7 Nxd3 19. cxd3 {[#]} (19. Qxd3 Nd6 $17) 19... Ng3+ $1 {[%mdl 512]} 20. hxg3 Qxd7) 18. Bc4 {[%emt 0:12:25]} Nbd5 {[%emt 0:11:29]} 19. Bg5 {[%emt 0:10:39]} Kg7 {[%emt 0:06:26]} ({Black should try} 19... Nxe4 $15 20. Nxe4 f5 21. Bxe7 Qxe7) 20. Nxf6 {[%emt 0:02:56]} (20. Bxd5 $11 {keeps the balance.} Nxd5 21. c4) 20... Bxf6 {[%emt 0:00:17]} ({Black should play} 20... Nxf6 $17 21. b4 Bxc5 22. bxc5 Ne4) 21. Ne4 {[%emt 0:01:20]} Bxg5 {[%emt 0:10:45]} (21... Bd8 $11) 22. fxg5 {[%emt 0:00:29]} Nf4 {[%emt 0:00:03]} 23. Qf3 {[%emt 0:06:34]} e5 {[%emt 0:01:54] [#]} 24. g3 $11 {[%emt 0:02:52]} (24. Qc3 $1 $16 Bxe4 25. Rxe4) 24... Bd5 {[%emt 0:00:26]} (24... Ne6 $11 {keeps the balance.}) 25. Bxd5 {[%emt 0:01:07]} Nxd5 {[%emt 0:00:03]} 26. c4 {[%emt 0:00:42]} Nb4 {[%emt 0:00:01]} 27. Qf6+ {[%emt 0:02:37]} Kg8 {[%emt 0:00:05]} 28. Nd6 {[%emt 0:00:58]} Rf8 {[%emt 0:02:04]} 29. Rxe5 {[%emt 0:01:42]} Nd3 {[%emt 0:00:40]} 30. Re7 {[%emt 0:00:50]} Qc6+ {[%emt 0:00:19]} 31. Kg1 {[%emt 0:03:02]} Qc5+ {[%emt 0:00:37]} 32. Kg2 {[%emt 0:00:12]} 1-0

[Event "Hector S Nazzari Memorial 2019"]
[Site "Montevideo"]
[Date "2019.10.18"]
[Round "5.10"]
[White "Bustelo, Tabare"]
[Black "Durante, Aurelio"]
[Result "1-0"]
[ECO "D01"]
[WhiteElo "2054"]
[BlackElo "1978"]
[Annotator "NA RC"]
[PlyCount "121"]
[EventDate "2019.10.14"]
[EventType "swiss"]
[EventCountry "URU"]
[SourceTitle "playchess.com"]
[Source "ChessBase"]
[SourceQuality "1"]
[TimeControl "5400+30"]

{[%evp 11,118,-53,-35,-52,-13,-23,-14,-24,-4,4,32767,32767,32767,32767,32767,13,16,11,14,0,7,6,48,42,47,36,83,13,27,10,20,-31,17,0,32767,32767,95,-20,32767,-9,24,13,19,8,41,0,0,32767,32767,32767,32767,32767,32767,32767,32767,32767,0,0,0,-59,59,-142,0,-65,-14,-136,-147,-204,-282,-186,-228,32767,32767,32767,32767,32767,-225,-398,32767,32767,-310,-414,-322,-706,-350,-439,-470,-442,-475,32767,-494,-460,-480,-488,-494,-589,-292,-287,-279,-314,-183,-268,-266,-253,-175,-279,1431,-451,-279]} 1. Nc3 {[%emt 0:08:00]} d5 {[%emt 0:00:42]} 2. d4 {[%emt 0:00:25]} Nf6 {[%emt 0:01:18]} 3. Bg5 {[%emt 0:00:11]} Bf5 {[%emt 0:01:26]} 4. Nf3 {[%emt 0:01:32]} c6 {[%emt 0:00:48]} 5. g3 {[%emt 0:00:50]} (5. e3 Nbd7 6. Bd3 Bxd3 7. cxd3 h6 8. Bh4 e6 9. O-O g5 10. Bg3 Nh5 11. Be5 f6 12. Nd2 {0-1 (30) Saptarshi,R (2425)-Svetushkin,D (2574) Karlsruhe 2017}) 5... Nbd7 {[%emt 0:00:18]} 6. Bg2 {[%emt 0:00:07] D01: Veresov Opening} h6 {[%emt 0:00:42]} 7. Bf4 {[%emt 0:00:40]} Ne4 {[%emt 0:01:59]} 8. Nxe4 $146 {[%emt 0:02:49]} ({Predecessor:} 8. Nd2 Nxc3 9. bxc3 g5 10. Be3 Nb6 11. h4 gxh4 12. Rxh4 {½-½ (50) Hadlich,W (1851)-Rakhmanov,V (1701) Pinneberg 2004}) 8... Bxe4 {[%emt 0:00:10]} 9. O-O {[%emt 0:00:18]} Rc8 {[%emt 0:02:57]} 10. c3 {[%emt 0:04:21]} Qb6 {[%emt 0:01:39]} 11. Qd2 {[%emt 0:00:45]} g5 {[%emt 0:02:52]} 12. Be3 {[%emt 0:00:04]} Qc7 {[%emt 0:02:22]} 13. Ne1 {[%emt 0:03:56]} Bf5 14. Nd3 Bg7 {[%emt 0:02:48]} 15. Rae1 {[%emt 0:01:59]} O-O {[%emt 0:00:25]} 16. f3 {[%emt 0:01:53]} Bg6 {[%emt 0:04:22]} 17. f4 {[%emt 0:06:36]} f6 {[%emt 0:01:05]} 18. Bh3 {[%emt 0:01:25]} Bf7 {[%emt 0:00:53]} 19. Rf2 {[%emt 0:03:15]} (19. Bf2 $16) 19... Rce8 {[%emt 0:01:23]} 20. Ref1 {[%emt 0:00:55]} e6 {[%emt 0:04:57]} 21. Ne1 {[%emt 0:08:14]} c5 {[%emt 0:02:26]} (21... Bg6 $15) 22. Nf3 {[%emt 0:04:28]} cxd4 {[%emt 0:01:58]} 23. cxd4 {[%emt 0:00:19]} Nb6 {[%emt 0:01:51]} (23... Bg6 $11 {keeps the balance.}) 24. b3 {[%emt 0:00:47]} ({White has to play} 24. fxg5 $16 hxg5 {[#]} 25. Bxg5 $1 {[%mdl 512]}) 24... Rc8 {[%emt 0:01:09]} 25. Qa5 $2 {[%emt 0:06:53]} ({White must play} 25. fxg5 $18 hxg5 26. Bxg5) 25... Nd7 {[%emt 0:10:05]} 26. Qa3 {[%emt 0:01:43]} Qb6 {[%emt 0:03:19]} 27. fxg5 {[%emt 0:02:56]} hxg5 {[%emt 0:02:48]} 28. Bd2 {[%emt 0:00:26]} Bh5 {[%emt 0:07:17]} 29. g4 {[%emt 0:09:16]} Bg6 {[%emt 0:00:02]} 30. Bb4 {[%emt 0:00:42]} Rfe8 {[%emt 0:00:56]} 31. e3 {[%emt 0:00:34]} Rc6 {[%emt 0:03:44]} 32. Bg2 {[%emt 0:00:29]} Rec8 {[%emt 0:00:26]} 33. h4 {[%emt 0:00:22]} gxh4 {[%emt 0:01:07]} 34. Nxh4 {[%emt 0:00:20]} Bd3 {[%emt 0:02:53]} 35. Rd1 {[%emt 0:00:32]} Bh7 {[%emt 0:00:09]} 36. Rdf1 $2 {[%emt 0:01:38]} (36. Ba5 $1 $14 {keeps the upper hand.} Qa6 37. Bf1) 36... Bd3 $2 {[%emt 0:05:56] [#]} ({Black should try} 36... Qc7 $19 37. Nf5 exf5 38. Bxd5+ Kh8 39. Bxc6 Qxc6) 37. Rd1 {[%emt 0:00:38]} ({Better is} 37. Nf5 $1 $11 {[%mdl 512]} Bxf1 (37... exf5 38. Bxd5+) 38. Ne7+ {[%mdl 64] Double Attack} Kf7 39. Ba5) 37... Qb5 {[%emt 0:00:25]} 38. Bd2 {[%emt 0:08:11]} (38. g5 $11) 38... Bf8 {[%emt 0:01:55]} 39. b4 {[%emt 0:00:54]} Ra6 {[%emt 0:01:27]} 40. Qb2 {[%emt 0:06:20]} Rc2 {[%emt 0:01:00]} 41. Qb3 {[%emt 0:01:47]} Raxa2 {[%emt 0:00:54]} 42. Be1 {[%emt 0:00:38]} Bc4 {[%emt 0:06:27]} 43. Qb1 {[%emt 0:01:47] [#]} Rab2 $1 {[%emt 0:03:15]} 44. Qa1 {[%emt 0:00:02]} (44. Qxb2 $142 Rxb2 45. Rxb2) 44... Rxf2 {[%emt 0:02:55]} 45. Bxf2 {[%emt 0:00:17]} Rxb4 {[%emt 0:01:58]} 46. Bf1 {[%emt 0:06:20]} Bh6 {[%emt 0:02:30]} 47. Qa3 $2 {[%emt 0:01:55]} (47. Re1) 47... Kf7 {[%emt 0:01:29]} 48. Qc3 {[%emt 0:00:29]} Rb1 {[%emt 0:00:42]} 49. Rxb1 {[%emt 0:02:22]} Qxb1 {[%emt 0:00:04]} 50. Be1 {[%emt 0:00:06]} Qe4 {[%emt 0:01:34]} 51. Ng2 {[%emt 0:00:50]} Qxg4 {[%emt 0:00:20]} 52. Bxc4 {[%emt 0:00:15]} dxc4 {[%emt 0:00:13]} 53. Bf2 {[%emt 0:01:52]} Bf8 {[%emt 0:00:50]} 54. Qxc4 {[%emt 0:00:25]} Qd1+ {[%emt 0:00:51]} 55. Be1 {[%emt 0:00:35]} Qf3 {[%emt 0:00:49]} 56. Bf2 {[%emt 0:00:54]} Qc6 {[%emt 0:00:48]} 57. Qe2 {[%emt 0:00:16]} Qd5 {[%emt 0:00:46]} 58. Nf4 {[%emt 0:00:25]} (58. e4 $142 Qg5 59. Qf3) 58... Bd6 $4 {[%emt 0:00:32]} (58... Qg5+ $19 59. Ng2 Bd6) 59. Nxd5 $19 {[%emt 0:00:03]} (59. Kf1 $4 {[%mdl 8192]}) 59... exd5 60. Qh5+ Ke7 61. Qxd5 1-0

[Event "Hector S Nazzari Memorial 2019"]
[Site "Montevideo"]
[Date "2019.10.18"]
[Round "5.13"]
[White "Belistri, Ubaldo"]
[Black "Ramos Correa, Gabriel"]
[Result "1/2-1/2"]
[ECO "E21"]
[WhiteElo "1853"]
[BlackElo "1889"]
[Annotator "NA RC"]
[PlyCount "48"]
[EventDate "2019.10.14"]
[EventType "swiss"]
[EventCountry "URU"]
[SourceTitle "playchess.com"]
[Source "ChessBase"]
[SourceQuality "1"]
[TimeControl "5400+30"]

1. d4 {[%emt 0:00:00]} Nf6 {[%emt 0:00:00]} 2. c4 {[%emt 0:00:00]} e6 {[%emt 0:00:00]} 3. Nf3 {[%emt 0:00:39]} b6 {[%emt 0:00:00]} 4. Nc3 {[%emt 0:02:20]} Bb7 {[%emt 0:00:11]} 5. Qc2 {[%emt 0:01:27]} Bb4 {[%emt 0:00:47]} 6. a3 {[%emt 0:03:30]} Bxc3+ {[%emt 0:00:22]} 7. Qxc3 {[%emt 0:00:03]} Ne4 {[%emt 0:05:18]} 8. Qc2 {[%emt 0:00:16]} d6 {[%emt 0:02:06]} 9. g3 {[%emt 0:00:47]} Nd7 {[%emt 0:00:47]} 10. Bg2 {[%emt 0:02:14]} f5 {[%emt 0:01:45]} (10... Nef6 $11) 11. O-O {[%emt 0:04:55]} (11. Ng5 $5 {[%cal Rg5e6]} Qe7 12. Nxe4 fxe4 13. Bxe4 Bxe4 14. Qxe4 $16) 11... O-O {[%emt 0:00:22]} 12. Nd2 {[%emt 0:08:25] E32: Nimzo-Indian: Classical (4 Qc2): 4...0-0} (12. b4 Ndf6 13. Bb2 Qe7 14. Nd2 a5 15. Nxe4 Bxe4 16. Bxe4 Nxe4 17. Kg2 Qd7 18. f3 Nf6 19. Bc3 axb4 20. axb4 Rxa1 21. Rxa1 Rb8 22. Ra3 {½-½ (22) Seres,L (2457)-Varga,Z (2467) Budapest 2014}) 12... Nxd2 $146 {[%emt 0:00:51]} ({Predecessor:} 12... Ndf6 13. Nxe4 Bxe4 14. Bxe4 Nxe4 15. f3 Nf6 16. Bf4 Nh5 17. Bd2 Nf6 18. Bf4 Qd7 19. Rad1 Nh5 {0-1 (67) Soler Ferrer,F (1734)-Ribon Calabia,M (1836) Barcelona 2013}) 13. Bxd2 {[%emt 0:01:10]} Bxg2 {[%emt 0:00:25]} 14. Kxg2 {[%emt 0:00:02]} Nf6 {[%emt 0:10:18]} 15. Rad1 {[%emt 0:02:44]} Qe8 {[%emt 0:02:47]} 16. f3 {[%emt 0:14:12]} Rd8 {[%emt 0:23:46]} 17. Bg5 {[%emt 0:01:29]} Qh5 {[%emt 0:05:29]} 18. Bxf6 {[%emt 0:05:58]} Rxf6 {[%emt 0:04:18]} 19. e3 {[%emt 0:00:51]} ({Much worse is} 19. h4 f4 $17) 19... Rdf8 {[%emt 0:04:32]} 20. Rd2 {[%emt 0:05:41]} g5 $14 {[%emt 0:07:24]} 21. Rdf2 {[%emt 0:06:31]} Qe8 {[%emt 0:04:56]} 22. f4 {[%emt 0:03:50]} Qc6+ {[%emt 0:03:20]} 23. Kg1 {[%emt 0:00:04]} g4 {[%emt 0:00:46]} 24. Re1 {[%emt 0:01:24]} Qd7 {[%emt 0:03:20]} 1/2-1/2

[Event "Hector S Nazzari Memorial 2019"]
[Site "Montevideo"]
[Date "2019.10.19"]
[Round "6.3"]
[White "Carvalho, Guillermo"]
[Black "Vitoux, Colomban"]
[Result "0-1"]
[ECO "A04"]
[WhiteElo "2183"]
[BlackElo "2381"]
[Annotator "RC"]
[PlyCount "70"]
[EventDate "2019.10.14"]
[EventType "swiss"]
[EventCountry "URU"]
[SourceTitle "playchess.com"]
[Source "ChessBase"]
[SourceQuality "1"]
[TimeControl "5400+30"]

1. Nf3 {[%emt 0:11:02]} c5 {[%emt 0:00:07]} 2. e3 {[%emt 0:00:59]} Nf6 {[%emt 0:00:49]} 3. c4 {[%emt 0:00:28]} g6 {[%emt 0:00:40]} 4. d4 {[%emt 0:01:12]} Bg7 {[%emt 0:00:09]} 5. Be2 {[%emt 0:02:11]} O-O {[%emt 0:00:20]} 6. O-O {[%emt 0:00:05]} cxd4 {[%emt 0:00:45]} 7. exd4 {[%emt 0:00:27]} d5 {[%emt 0:00:22]} 8. Nc3 {[%emt 0:00:23]} dxc4 {[%emt 0:03:45]} 9. Bxc4 {[%emt 0:00:44]} b6 {[%emt 0:00:55]} 10. Re1 {[%emt 0:04:42]} Bb7 {[%emt 0:00:17]} 11. d5 {[%emt 0:04:13]} Nbd7 {[%emt 0:09:29]} 12. Qe2 {[%emt 0:05:12]} Nc5 {[%emt 0:10:32]} 13. Rd1 {[%emt 0:06:07]} Rc8 {[%emt 0:01:31]} 14. Bf4 {[%emt 0:06:28]} Ne8 {[%emt 0:30:51]} 15. Nb5 {[%emt 0:06:56]} Na4 {[%emt 0:06:04]} 16. Be5 {[%emt 0:24:12]} Nxb2 {[%emt 0:07:35]} 17. Bxb2 {[%emt 0:07:29]} Bxb2 {[%emt 0:00:37]} 18. Rab1 {[%emt 0:01:56]} Bf6 {[%emt 0:02:02]} 19. Nxa7 {[%emt 0:04:02]} Rc5 {[%emt 0:00:31]} 20. Nc6 {[%emt 0:02:07]} Qc7 {[%emt 0:00:41]} 21. Nce5 {[%emt 0:02:29]} Nd6 {[%emt 0:05:26]} 22. Bb3 {[%emt 0:02:47]} Nb5 {[%emt 0:00:19]} 23. Nd3 {[%emt 0:00:51]} Nc3 {[%emt 0:00:34]} 24. Qe1 {[%emt 0:00:22]} Nxd1 {[%emt 0:02:24]} 25. Rxd1 {[%emt 0:01:12]} Rc3 {[%emt 0:02:07]} 26. Nde5 {[%emt 0:02:11]} Kg7 {[%emt 0:00:43]} 27. Nc6 {[%emt 0:01:08]} Bxc6 {[%emt 0:00:36]} 28. dxc6 {[%emt 0:00:17]} Rxc6 {[%emt 0:01:51]} 29. g3 {[%emt 0:00:44]} Rd8 {[%emt 0:00:32]} 30. Rxd8 {[%emt 0:00:25]} Qxd8 {[%emt 0:00:05]} 31. Ne5 {[%emt 0:00:17]} Bxe5 {[%emt 0:02:23]} 32. Qxe5+ {[%emt 0:00:13]} f6 {[%emt 0:00:06]} 33. Qe4 {[%emt 0:00:38]} Qd6 {[%emt 0:01:14]} 34. Kg2 {[%emt 0:01:15]} Rc5 {[%emt 0:00:05]} 35. h4 {[%emt 0:00:18]} Qc6 0-1

[Event "Hector S Nazzari Memorial 2019"]
[Site "Montevideo"]
[Date "2019.10.19"]
[Round "6.5"]
[White "Dominguez, Facundo"]
[Black "Carbone, Diego"]
[Result "1/2-1/2"]
[ECO "B30"]
[WhiteElo "2130"]
[BlackElo "2233"]
[Annotator "RC"]
[PlyCount "42"]
[EventDate "2019.10.14"]
[EventType "swiss"]
[EventCountry "URU"]
[SourceTitle "playchess.com"]
[Source "ChessBase"]
[SourceQuality "1"]
[TimeControl "5400+30"]

1. e4 {[%emt 0:09:27]} c5 {[%emt 0:00:00]} 2. Nf3 {[%emt 0:01:09]} Nc6 {[%emt 0:01:09]} 3. b3 {[%emt 0:03:44]} e5 {[%emt 0:02:37]} 4. Bb2 {[%emt 0:00:47]} d6 {[%emt 0:01:13]} 5. Bb5 {[%emt 0:00:33]} Nge7 {[%emt 0:02:20]} 6. O-O {[%emt 0:02:14]} g6 {[%emt 0:01:42]} 7. c3 {[%emt 0:01:24]} Bg7 {[%emt 0:00:50]} 8. d4 {[%emt 0:01:17]} exd4 {[%emt 0:00:38]} 9. cxd4 {[%emt 0:00:07]} O-O {[%emt 0:00:18]} 10. Qd3 {[%emt 0:13:31]} a6 {[%emt 0:08:38]} 11. Bxc6 {[%emt 0:01:36]} Nxc6 {[%emt 0:00:07]} 12. Bc3 {[%emt 0:01:00]} Bg4 {[%emt 0:31:28]} 13. Nbd2 {[%emt 0:04:17]} cxd4 {[%emt 0:15:29]} 14. Nxd4 {[%emt 0:00:33]} Nxd4 {[%emt 0:08:07]} 15. Bxd4 {[%emt 0:00:11]} Be2 {[%emt 0:00:05]} 16. Qxe2 {[%emt 0:00:06]} Bxd4 {[%emt 0:00:03]} 17. Rad1 {[%emt 0:02:53]} b5 {[%emt 0:01:22]} 18. Nf3 {[%emt 0:06:12]} Bc5 {[%emt 0:00:48]} 19. Rd5 {[%emt 0:02:14]} Qb6 {[%emt 0:01:56]} 20. Qb2 {[%emt 0:02:45]} Qa5 {[%emt 0:01:54]} 21. Qb1 {[%emt 0:09:12]} Qb4 {[%emt 0:03:56]} 1/2-1/2

[Event "Hector S Nazzari Memorial 2019"]
[Site "Montevideo"]
[Date "2019.10.19"]
[Round "6.7"]
[White "Palacio, Enzo"]
[Black "El Ters, Antouan"]
[Result "0-1"]
[ECO "B32"]
[WhiteElo "1780"]
[BlackElo "2200"]
[Annotator "ChessBase"]
[PlyCount "122"]
[EventDate "2019.10.14"]
[EventType "swiss"]
[EventCountry "URU"]
[SourceTitle "playchess.com"]
[Source "ChessBase"]
[SourceQuality "1"]
[TimeControl "5400+30"]

1. e4 {[%emt 0:00:00]} c5 {[%emt 0:00:42]} 2. Nf3 {[%emt 0:00:00]} Nc6 {[%emt 0:00:34]} 3. d4 {[%emt 0:00:00]} cxd4 {[%emt 0:00:25]} 4. Nxd4 {[%emt 0:00:00]} e5 {[%emt 0:00:17]} 5. Nb5 {[%emt 0:00:21]} a6 {[%emt 0:02:17]} 6. Nd6+ {[%emt 0:00:04]} Bxd6 {[%emt 0:00:10]} 7. Qxd6 {[%emt 0:00:03]} Qf6 {[%emt 0:00:09]} 8. Qd1 {[%emt 0:00:07]} Qg6 {[%emt 0:00:53]} 9. Nc3 {[%emt 0:00:04]} Nge7 {[%emt 0:00:50]} 10. Be3 {[%emt 0:00:28]} d6 {[%emt 0:09:06]} 11. Qd2 {[%emt 0:03:44]} f5 {[%emt 0:01:24]} 12. O-O-O {[%emt 0:06:03]} Be6 {[%emt 0:08:36]} 13. f3 {[%emt 0:09:13]} Rd8 {[%emt 0:02:52]} 14. Bb6 {[%emt 0:08:58]} Rd7 {[%emt 0:00:42]} 15. Nd5 {[%emt 0:04:42]} O-O {[%emt 0:03:48]} 16. h4 {[%emt 0:08:55]} h5 {[%emt 0:04:16]} 17. Bd3 {[%emt 0:07:47]} Nxd5 {[%emt 0:08:06]} 18. exd5 {[%emt 0:00:08]} Bxd5 {[%emt 0:00:20]} 19. Bxf5 {[%emt 0:01:01]} Qxf5 {[%emt 0:00:08]} 20. Qxd5+ {[%emt 0:00:05]} Kh8 {[%emt 0:00:19]} 21. a3 {[%emt 0:06:39]} Rc8 {[%emt 0:01:25]} 22. Qe4 {[%emt 0:01:03]} Qf7 {[%emt 0:02:22]} 23. Qd5 {[%emt 0:01:03]} Qxd5 {[%emt 0:06:36]} 24. Rxd5 {[%emt 0:00:03]} Ne7 {[%emt 0:00:32]} 25. Rd2 {[%emt 0:00:17]} Rc6 {[%emt 0:00:24]} 26. Bf2 {[%emt 0:00:42]} Rdc7 {[%emt 0:01:24]} 27. Kb1 {[%emt 0:00:32]} Kg8 {[%emt 0:02:54]} 28. Rhd1 {[%emt 0:00:39]} Kf7 {[%emt 0:01:02]} 29. Rxd6 {[%emt 0:01:04]} Rxc2 {[%emt 0:00:12]} 30. R1d2 {[%emt 0:00:19]} Rc1+ {[%emt 0:02:10]} 31. Ka2 {[%emt 0:00:07]} R1c2 {[%emt 0:19:25]} 32. Kb3 {[%emt 0:01:11]} Rxd2 {[%emt 0:00:37]} 33. Rxd2 {[%emt 0:00:01]} Ke6 {[%emt 0:00:21]} 34. Re2 {[%emt 0:04:21]} Ng6 {[%emt 0:00:20]} 35. g3 {[%emt 0:02:32]} Kf5 {[%emt 0:00:52]} 36. Re4 {[%emt 0:02:12]} Rc1 {[%emt 0:01:21]} 37. Rb4 {[%emt 0:05:30]} Rf1 {[%emt 0:03:10]} 38. g4+ {[%emt 0:00:13]} Kf6 {[%emt 0:01:46]} 39. Rb6+ {[%emt 0:00:15]} Kf7 {[%emt 0:00:13]} 40. Rxb7+ {[%emt 0:00:05]} Kg8 {[%emt 0:00:13]} 41. gxh5 {[%emt 0:01:07]} Nf4 {[%emt 0:00:09]} 42. Bc5 {[%emt 0:00:57]} Rxf3+ {[%emt 0:01:29]} 43. Kc2 {[%emt 0:00:09]} Ne6 {[%emt 0:01:16]} 44. Bd6 {[%emt 0:04:01]} Nd4+ {[%emt 0:02:05]} 45. Kd2 {[%emt 0:00:28]} e4 {[%emt 0:00:31]} 46. Re7 {[%emt 0:04:02]} Rd3+ {[%emt 0:00:15]} 47. Ke1 {[%emt 0:00:50]} Nf3+ {[%emt 0:00:41]} 48. Kf2 {[%emt 0:00:29]} Rxd6 {[%emt 0:00:34]} 49. Rxe4 {[%emt 0:00:03]} Nd4 {[%emt 0:00:30]} 50. b4 {[%emt 0:01:04]} Rf6+ {[%emt 0:01:57]} 51. Kg3 {[%emt 0:00:09]} Nb5 {[%emt 0:00:31]} 52. Re3 {[%emt 0:00:30]} Nd6 {[%emt 0:01:25]} 53. Kg4 {[%emt 0:00:24]} Nc4 {[%emt 0:01:36]} 54. Rc3 {[%emt 0:00:16]} Nb6 {[%emt 0:01:50]} 55. Rc5 {[%emt 0:00:19]} Kh7 {[%emt 0:00:28]} 56. Ra5 {[%emt 0:00:09]} Nc4 {[%emt 0:00:18]} 57. Ra4 {[%emt 0:00:09]} Kh6 {[%emt 0:00:30]} 58. b5 {[%emt 0:00:35]} axb5 {[%emt 0:00:36]} 59. Rb4 {[%emt 0:00:31]} Nxa3 {[%emt 0:00:13]} 60. Rb3 {[%emt 0:00:16]} Ra6 {[%emt 0:00:06]} 61. Rb4 {[%emt 0:00:31]} Ra4 {[%emt 0:00:17]} 0-1

[Event "Hector S Nazzari Memorial 2019"]
[Site "Montevideo"]
[Date "2019.10.19"]
[Round "6.8"]
[White "Gomez Troccoli, Martin"]
[Black "Bustelo, Tabare"]
[Result "1-0"]
[ECO "B29"]
[WhiteElo "1961"]
[BlackElo "2054"]
[Annotator "NA RC"]
[PlyCount "91"]
[EventDate "2019.10.14"]
[EventType "swiss"]
[EventCountry "URU"]
[SourceTitle "playchess.com"]
[Source "ChessBase"]
[SourceQuality "1"]
[TimeControl "5400+30"]

{[%evp 29,86,8,14,12,19,20,7,5,16,17,32767,32767,14,6,25,-25,-5,-10,-10,32767,-52,32767,-68,-82,-41,-55,-10,-17,0,0,0,-5,-2,32767,32767,-42,55,104,86,100,32767,32767,32767,32767,32767,32767,32767,32767,32767,32767,32767,618,621,687,984,997,840,1715,4132]} 1. e4 {[%emt 0:00:00]} c5 {[%emt 0:01:45]} 2. Nf3 {[%emt 0:00:00]} Nf6 {[%emt 0:00:12]} 3. Nc3 {[%emt 0:00:00]} d5 {[%emt 0:02:39]} 4. e5 {[%emt 0:12:55]} d4 {[%emt 0:00:24]} 5. exf6 {[%emt 0:01:18]} dxc3 {[%emt 0:00:07]} 6. fxg7 {[%emt 0:02:48]} cxd2+ {[%emt 0:05:15]} 7. Qxd2 {[%emt 0:01:11]} Qxd2+ {[%emt 0:00:13]} 8. Bxd2 {[%emt 0:00:07]} Bxg7 {[%emt 0:00:07]} 9. O-O-O {[%emt 0:00:45]} Nc6 {[%emt 0:08:57] B02: Alekhine's Defence: Chase Variation and lines with early Nc3} (9... O-O 10. Bg5 Nc6 11. Bb5 Rb8 12. Bf4 e5 13. Bxc6 exf4 14. Bd7 b5 15. Bxc8 Rbxc8 16. c3 a5 17. Kc2 a4 {0-1 (30) Von Herman,U (2400)-Richter,M (2439) Berlin 2003}) 10. Bd3 $146 {[%emt 0:10:55]} ({Predecessor:} 10. Be3 b6 11. Bb5 Bb7 12. Bg5 a6 13. Bc4 Nd4 14. Nxd4 cxd4 15. Rhe1 e6 16. Bxe6 fxe6 17. Rxe6+ {0-1 (42) Georgiev,S-Okov,M (1978) Sofia 2013}) 10... Bg4 {[%emt 0:06:35]} 11. Rde1 {[%emt 0:02:03]} Bxf3 {[%emt 0:12:20]} 12. gxf3 {[%emt 0:00:05]} e6 {[%emt 0:09:44]} 13. Rhg1 {[%emt 0:04:40]} Bf6 {[%emt 0:00:57]} 14. Rg4 {[%emt 0:15:38]} a6 {[%emt 0:09:31]} 15. f4 {[%emt 0:09:05]} O-O-O {[%emt 0:02:51]} 16. Bc3 {[%emt 0:05:13]} Bxc3 {[%emt 0:02:21]} 17. bxc3 {[%emt 0:00:20]} Rdg8 {[%emt 0:04:26]} 18. Reg1 {[%emt 0:00:17]} Rxg4 {[%emt 0:00:52]} 19. Rxg4 {[%emt 0:00:05]} h6 {[%emt 0:00:31]} 20. Rg7 {[%emt 0:03:58]} Nd8 {[%emt 0:02:19]} 21. f5 {[%emt 0:02:21]} Kd7 {[%emt 0:00:13]} 22. f6 {[%emt 0:00:50]} Kd6 {[%emt 0:02:36]} 23. f4 {[%emt 0:07:31]} h5 {[%emt 0:02:51]} 24. f5 {[%emt 0:06:45]} exf5 {[%emt 0:02:23]} 25. Rg5 {[%emt 0:00:54]} f4 {[%emt 0:00:34]} 26. a4 {[%emt 0:00:38]} Rh6 {[%emt 0:02:07]} 27. Rf5 {[%emt 0:00:12]} Ke6 {[%emt 0:07:21]} 28. Rxc5 {[%emt 0:00:19]} Kxf6 {[%emt 0:03:01]} 29. Rf5+ {[%emt 0:00:07]} Ke7 {[%emt 0:01:38]} 30. h4 {[%emt 0:00:16]} Rf6 {[%emt 0:01:12]} 31. Rxh5 {[%emt 0:00:07]} f3 {[%emt 0:00:04]} 32. Rf5 {[%emt 0:02:10]} f2 $2 {[%emt 0:04:25]} ({Better is} 32... Rxf5 $17 33. Bxf5 f2) 33. Rxf6 {[%emt 0:00:18]} Kxf6 {[%emt 0:00:03]} 34. Kd2 {[%emt 0:00:08]} f1=Q {[%emt 0:01:21]} 35. Bxf1 {[%emt 0:00:04]} Kf5 {[%emt 0:00:14]} 36. Be2 {[%emt 0:01:30]} a5 {[%emt 0:00:36]} 37. Kd3 {[%emt 0:01:11]} Ne6 {[%emt 0:01:46]} 38. Kc4 {[%emt 0:00:18]} b6 {[%emt 0:00:05]} 39. Kb5 {[%emt 0:01:33]} Nc5 {[%emt 0:00:02]} 40. Bh5 {[%emt 0:00:54]} Ke6 {[%emt 0:01:06]} 41. c4 {[%emt 0:00:41]} f5 $18 {[%emt 0:00:04]} 42. Bf3 {[%emt 0:03:11]} f4 {[%emt 0:01:36]} 43. Kxb6 {[%emt 0:00:33]} Nxa4+ {[%emt 0:00:07]} 44. Kxa5 {[%emt 0:00:25]} Nc5 {[%emt 0:00:10]} 45. Kb4 {[%emt 0:01:28]} Kd6 {[%emt 0:00:23]} 46. h5 {[%emt 0:00:15]} 1-0